[Event "Djerba Festival Open-A 2024"]
[Site "Djerba"]
[Date "2024.02.20"]
[Round "3.1"]
[White "Travadon, Loic"]
[Black "Domenech, Vianney"]
[Result "1/2-1/2"]
[ECO "B06"]
[WhiteElo "2460"]
[BlackElo "2254"]
[Annotator "TA"]
[PlyCount "63"]
[EventDate "2024.02.18"]
[EventType "swiss"]
[EventCountry "TUN"]
[SourceTitle "playchess.com"]
[Source "ChessBase"]
[SourceQuality "1"]
[TimeControl "5400+30"]

{[%evp 9,63,39,51,28,54,56,59,56,56,68,62,54,68,57,47,62,98,26,10,26,39,26,69,44,48,53,62,0,0,0,0,0,0,0,16,14,53,33,79,68,67,27,45,35,29,20,25,29,24,24,32,0,8,-38,-16,-121]} 1. e4 {[%emt 0:03:56]} Nc6 {[%emt 0:01:49]} 2. Nf3 {[%emt 0:00:12]} d6 {[%emt 0:00:06]} 3. d4 {[%emt 0:00:06]} Nf6 {[%emt 0:00:04]} 4. Nc3 {[%emt 0:00:05]} g6 {[%emt 0:00:02]} 5. Be3 {[%emt 0:00:10]} Bg7 {[%emt 0:00:16]} 6. Qd2 {[%emt 0:00:18]} Ng4 {[%emt 0:02:14]} 7. Bg5 {[%emt 0:00:49]} h6 {[%emt 0:01:11]} 8. Bh4 {[%emt 0:00:14] White is slightly better.} O-O {[%emt 0:03:39]} 9. h3 {[%emt 0:00:33]} Nf6 {[%emt 0:00:14]} 10. O-O-O {[%emt 0:01:17]} a6 {[%emt 0:11:00]} 11. Qe3 {[%emt 0:07:32]} b5 {[%emt 0:09:36]} 12. e5 {[%emt 0:01:30]} Nh7 {[%emt 0:00:25]} 13. exd6 {[%emt 0:00:29] White is more active.} (13. Bd3 $16) 13... cxd6 $11 {[%emt 0:02:16]} 14. d5 {[%emt 0:00:41]} Ne5 {[%emt 0:10:55]} 15. Nxe5 {[%emt 0:01:18]} Bxe5 {[%emt 0:00:13]} 16. f4 $1 {[%emt 0:01:28]} ({Reject} 16. Qxh6 Qa5 17. Kb1 (17. Bxe7 $2 {too greedy.} Re8 $19) 17... Bb7 $11) 16... Bf6 {[%emt 0:05:24]} 17. Bxf6 {[%emt 0:00:12]} exf6 {[%emt 0:02:15]} 18. Qd4 {[%emt 0:09:05]} (18. Bd3 $14) 18... f5 {[%emt 0:07:11]} 19. Be2 {[%emt 0:00:39]} Qf6 {[%emt 0:00:50]} 20. Bf3 {[%emt 0:00:27]} Qxd4 {[%emt 0:00:57]} 21. Rxd4 {[%emt 0:00:05]} Re8 {[%emt 0:01:08]} 22. a4 {[%emt 0:00:36]} bxa4 {[%emt 0:02:47]} 23. Nxa4 {[%emt 0:01:11]} Rb8 {[%emt 0:00:27]} (23... a5 $14) 24. b3 $16 {[%emt 0:00:30]} Nf6 {[%emt 0:01:28]} 25. Kb2 {[%emt 0:02:34]} Kg7 {[%emt 0:01:13]} 26. Ra1 {[%emt 0:04:07]} g5 {[%emt 0:03:44][%cal Bg6g5,Bg5g4][%mdl 32]} 27. Nc3 {[%emt 0:00:20]} g4 {[%emt 0:08:09]} 28. Be2 {[%emt 0:03:21]} Re3 {[%emt 0:04:44]} 29. Rd3 {[%emt 0:00:17]} Re7 {[%emt 0:01:10]} 30. Ra4 {[%emt 0:02:41]} h5 {[%emt 0:00:52]} 31. Rc4 {[%emt 0:02:29]} (31. Rd1 $11) 31... Bb7 {[%emt 0:00:24] Threatening ...Rbe8.} 32. Rb4 {[%emt 0:01:38] Weighted Error Value: White=0.13 (very precise) /Black=0.11 (very precise) .  Mistake:       	White=4     	Black=1      Inaccurate:     	White=1     	Black=4      OK:         	White=11    	Black=10     Best:        	White=1     	---        Strong:       	White=1     	---} (32. Rcd4 $11) 1/2-1/2

[Event "Djerba Festival Open-A 2024"]
[Site "Djerba"]
[Date "2024.02.20"]
[Round "3.2"]
[White "Djabri, Massinas"]
[Black "Defromont, Benjamin"]
[Result "1/2-1/2"]
[ECO "A57"]
[WhiteElo "2238"]
[BlackElo "2423"]
[Annotator "TA"]
[PlyCount "102"]
[EventDate "2024.02.18"]
[EventType "swiss"]
[EventCountry "TUN"]
[SourceTitle "playchess.com"]
[Source "ChessBase"]
[SourceQuality "1"]
[TimeControl "5400+30"]

{[%evp 25,102,14,10,10,54,56,50,55,49,20,10,0,11,0,0,0,0,0,12,0,0,0,60,14,13,0,0,-7,-5,-8,0,0,-7,-7,-13,-8,0,0,0,0,0,0,0,0,0,0,-3,-87,-38,-97,-2,-81,0,-22,0,0,-8,-11,0,0,0,0,0,0,0,0,0,0,0,0,0,0,0,0,0,0,0,0,0]} 1. d4 {[%emt 0:07:30]} Nf6 {[%emt 0:05:24]} 2. c4 {[%emt 0:00:11]} c5 {[%emt 0:00:11]} 3. d5 {[%emt 0:00:57]} b5 {[%emt 0:00:36]} 4. cxb5 {[%emt 0:00:07]} a6 {[%emt 0:00:11]} 5. b6 {[%emt 0:00:06]} e6 {[%emt 0:00:28]} 6. Nc3 {[%emt 0:00:07]} Nxd5 {[%emt 0:01:51]} 7. Nxd5 {[%emt 0:00:08]} exd5 {[%emt 0:00:03]} 8. Qxd5 {[%emt 0:00:06]} Nc6 {[%emt 0:00:05]} 9. Nf3 {[%emt 0:00:46]} Rb8 {[%emt 0:01:11]} 10. e4 {[%emt 0:11:04]} Be7 {[%emt 0:00:25]} 11. Bc4 {[%emt 0:01:20]} O-O {[%emt 0:00:10]} 12. O-O {[%emt 0:00:04]} Rxb6 {[%emt 0:00:19]} 13. Qh5 {[%emt 0:08:41]} d6 {[%emt 0:01:24]} 14. b3 {[%emt 0:06:41]} Bf6 {[%emt 0:12:04][%cal Og7g6] [#] White must now prevent ...g6!} 15. Ng5 $1 {[%emt 0:05:59]} Bxg5 {[%emt 0:00:38]} 16. Bxg5 {[%emt 0:00:07] White is slightly better.} Qe8 {[%emt 0:00:26]} 17. Rae1 {[%emt 0:04:05]} Be6 $1 {[%emt 0:02:49]} 18. Bd5 {[%emt 0:01:56]} Nd4 {[%emt 0:05:17]} 19. Be3 {[%emt 0:04:38]} Nc2 {[%emt 0:05:59]} 20. Re2 {[%emt 0:00:05]} Nxe3 {[%emt 0:00:21]} 21. Rxe3 {[%emt 0:00:05]} Bxd5 {[%emt 0:00:22]} 22. exd5 {[%emt 0:00:52]} Qd8 {[%emt 0:00:18]} 23. Rfe1 {[%emt 0:01:22]} Rb7 {[%emt 0:06:44]} (23... a5 $11) 24. Qf5 {[%emt 0:02:56]} (24. Qe2 $14) 24... g6 {[%emt 0:02:36]} 25. Qf4 {[%emt 0:00:17]} Rb4 {[%emt 0:01:23]} 26. Qg3 {[%emt 0:00:59]} Rd4 {[%emt 0:04:21]} 27. Qf3 {[%emt 0:01:09]} Qa8 {[%emt 0:04:25]} 28. Rd1 {[%emt 0:02:17]} Re8 {[%emt 0:02:30]} 29. h3 {[%emt 0:00:49]} Rxe3 {[%emt 0:01:36]} 30. fxe3 {[%emt 0:00:07]} Rxd1+ {[%emt 0:00:06]} 31. Qxd1 $11 {[%emt 0:00:03][%mdl 4096] Endgame. KQ-KQ} Qe8 {[%emt 0:00:27]} 32. Qd3 {[%emt 0:00:06]} Qe5 {[%emt 0:00:41]} 33. a4 {[%emt 0:00:39]} a5 {[%emt 0:01:07]} 34. Kf2 {[%emt 0:01:19]} Kg7 {[%emt 0:00:47]} 35. Qd2 {[%emt 0:01:46] Against Qb2} h5 {[%emt 0:02:02]} 36. Qd3 {[%emt 0:02:49]} (36. Kg1 $11 {keeps the balance.}) 36... Qb2+ {[%emt 0:03:48]} (36... Qf6+ $17 37. Kg1 Qa1+ 38. Kh2 Kf6) 37. Kf3 {[%emt 0:01:00]} (37. Kg3 $15) 37... Kf6 {[%emt 0:04:22]} (37... h4 $17) 38. Qc4 {[%emt 0:04:20]} (38. Qb5 $11) 38... g5 {[%emt 0:11:13]} ({Black should try} 38... Qd2 $17 39. Qf4+ Ke7 40. Qh4+ Ke8) 39. h4 {[%emt 0:04:10] The position is equal.} Qe5 {[%emt 0:00:58]} 40. hxg5+ {[%emt 0:01:15]} Kxg5 {[%emt 0:00:19]} 41. g4 {[%emt 0:01:15] Repels Qf5+} Kg6 {[%emt 0:02:46] [#] aiming for ...h4.} 42. gxh5+ {[%emt 0:01:20]} Qxh5+ {[%emt 0:00:21]} 43. Qg4+ {[%emt 0:00:23]} Qxg4+ {[%emt 0:02:52]} 44. Kxg4 {[%emt 0:00:08] KP-KP} f5+ {[%emt 0:00:12]} (44... Kf6 $5 45. Kf4 $8 Kg6 $11) 45. Kf3 $1 {[%emt 0:01:01]} Kf7 {[%emt 0:01:16]} 46. Kg3 $1 {[%emt 0:00:08]} Kg7 {[%emt 0:00:28]} 47. Kf3 $1 {[%emt 0:00:06]} Kg6 {[%emt 0:00:38]} 48. Kg3 $1 {[%emt 0:00:08]} Kf6 {[%emt 0:00:22] ( -> ...Ke5)} 49. Kf4 {[%emt 0:00:02]} Kg6 {[%emt 0:00:07]} 50. Kf3 {[%emt 0:00:11]} Kf7 {[%emt 0:00:25]} 51. Kg3 $1 {[%emt 0:00:09]} Kg7 {[%emt 0:00:13] Weighted Error Value: White=0.13 (very precise) /Black=0.13 (very precise) .  Mistake:       	White=4     	Black=4      Inaccurate:     	White=1     	Black=1      OK:         	White=15    	Black=15     Best:        	White=1     	Black=2      Strong:       	White=6     	Black=1} 1/2-1/2

[Event "Djerba Festival Open-A 2024"]
[Site "Djerba"]
[Date "2024.02.20"]
[Round "3.3"]
[White "Eden, James"]
[Black "Rudzinska, Michalina"]
[Result "1/2-1/2"]
[ECO "A30"]
[WhiteElo "2319"]
[BlackElo "2241"]
[Annotator "TA"]
[PlyCount "130"]
[EventDate "2024.02.18"]
[EventType "swiss"]
[EventCountry "TUN"]
[SourceTitle "playchess.com"]
[Source "ChessBase"]
[SourceQuality "1"]
[TimeControl "5400+30"]

{[%evp 14,129,10,-10,-12,-66,-11,-87,-86,-131,-134,-137,-118,-189,-239,-220,-217,-239,-227,-224,-212,-214,-221,-208,-210,-218,-208,-210,-228,-248,-258,-247,-247,-267,-247,-545,-543,-585,-570,-510,-354,-367,-367,-367,-354,-362,-334,-341,-322,-489,-491,-447,-393,-387,-378,-354,-347,-325,0,0,0,0,0,0,0,0,0,0,0,0,0,-225,-227,-252,-246,-256,-263,-331,-195,-179,-183,-230,-177,-169,-143,-158,-152,-242,-29,-38,0,0,0,0,0,0,0,0,0,0,0,0,0,0,0,0,0,0,0,-29973,0,0,0,0,0,0,0,0]} 1. Nf3 {[%emt 0:03:40]} Nf6 {[%emt 0:00:43]} 2. c4 {[%emt 0:00:55]} e6 {[%emt 0:00:16]} 3. b3 {[%emt 0:01:16]} b6 {[%emt 0:02:29]} 4. g3 {[%emt 0:01:34]} Bb7 {[%emt 0:00:22]} 5. Bg2 {[%emt 0:00:21]} c5 {[%emt 0:05:06]} 6. Bb2 {[%emt 0:01:35]} Be7 {[%emt 0:01:55]} 7. O-O {[%emt 0:00:44]} O-O {[%emt 0:01:26]} 8. Qc2 {[%emt 0:07:15]} d5 {[%emt 0:05:38]} 9. Ng5 {[%emt 0:04:27]} (9. cxd5 $11 Qxd5 10. Nc3) 9... g6 {[%emt 0:03:20]} (9... h6 $15 10. Nf3 Nc6) 10. Nc3 {[%emt 0:07:23]} (10. Nf3 $11 {remains equal.}) 10... Nc6 $1 $17 {[%emt 0:02:58] Black is better.} 11. h4 {[%emt 0:10:19]} d4 {[%emt 0:04:48]} 12. Nce4 {[%emt 0:06:25]} Nxe4 {[%emt 0:01:47]} 13. Nxe4 {[%emt 0:01:00]} (13. Qxe4 $17 Bxg5 14. hxg5) 13... f5 $19 {[%emt 0:01:58]} 14. Ng5 {[%emt 0:00:21]} Bxg5 {[%emt 0:00:24]} 15. hxg5 {[%emt 0:00:10]} Qxg5 {[%emt 0:02:04]} 16. e3 {[%emt 0:02:59]} Nb4 {[%emt 0:09:05]} 17. Qb1 {[%emt 0:00:40]} Bxg2 {[%emt 0:00:42]} 18. Kxg2 {[%emt 0:00:09]} e5 {[%emt 0:04:46]} 19. f4 {[%emt 0:07:41]} exf4 {[%emt 0:01:31]} 20. exf4 {[%emt 0:00:16]} Qg4 {[%emt 0:06:18]} 21. a3 {[%emt 0:00:21]} Nc6 {[%emt 0:00:25]} 22. Qd3 {[%emt 0:00:29]} Rae8 {[%emt 0:01:30]} 23. Rae1 {[%emt 0:00:23]} g5 {[%emt 0:08:45]} 24. fxg5 $2 {[%emt 0:14:57]} (24. Bc1) 24... Ne5 {[%emt 0:01:39]} 25. Qe2 {[%emt 0:05:49]} Qxg5 {[%emt 0:00:58]} 26. d3 {[%emt 0:03:37]} Ng4 {[%emt 0:09:01]} (26... f4 $2 27. Rxf4 Rxf4 28. Bc1 $19) 27. Qxe8 {[%emt 0:02:30]} Rxe8 {[%emt 0:00:06]} 28. Rxe8+ {[%emt 0:00:07]} Kf7 {[%emt 0:00:15]} (28... Kg7 29. Bc1 Qh5 30. Re7+ Kf6 31. Rh1 $19) 29. Bc1 {[%emt 0:00:14] Prevents Qd2+.} Qh5 {[%emt 0:00:46]} 30. Rh1 {[%emt 0:09:04] Dodges Qh2+} Qg6 {[%emt 0:00:42]} 31. Rc8 {[%emt 0:04:51] Prevents Qc6+.} (31. Rhe1 $142 Qc6+ (31... Ne3+ $2 32. Bxe3 Kxe8 33. Bxd4+ Kd7 34. Be5 $19) 32. Kg1) 31... Qe6 $1 {[%emt 0:02:21]} 32. Rc7+ {[%emt 0:00:09]} Kg8 {[%emt 0:02:06]} 33. Kf1 {[%emt 0:00:51] Against Qe2+} h6 {[%emt 0:06:41]} 34. Bf4 {[%emt 0:00:30]} Qe8 {[%emt 0:01:59] Inhibits Rh5.} 35. Rg1 {[%emt 0:02:55]} Ne5 $2 {[%emt 0:03:55]} (35... Qh5 $19 {aiming for ...Qh2.} 36. Re7 Qh3+ 37. Ke1 Qh2) 36. Rg2 $11 {[%emt 0:01:33]} Qh5 {[%emt 0:07:03]} 37. Bxe5 {[%emt 0:00:51]} Qd1+ {[%emt 0:00:09]} 38. Kf2 {[%emt 0:00:05]} Qd2+ {[%emt 0:00:25]} 39. Kf1 {[%emt 0:00:52]} Qc1+ {[%emt 0:00:18]} 40. Kf2 {[%emt 0:00:26]} Qe3+ {[%emt 0:00:13]} 41. Kf1 {[%emt 0:00:02]} Qxe5 {[%emt 0:00:38][%mdl 4096] Endgame. KQ-KRR} 42. Rc8+ {[%emt 0:01:06]} (42. Rxa7 $11 {and White has nothing to worry.} Kf8 (42... Qe3 43. Re2 $11) 43. Rf2) 42... Kf7 $1 $19 {[%emt 0:00:14] ...Qe3 would now be deadly.} 43. Rf2 {[%emt 0:00:30]} (43. b4 Qe3 44. bxc5 Qxd3+ 45. Kg1 Qd1+ (45... Qxc4 46. Rc7+ Kf6 47. cxb6 $11) (45... Qxa3 46. Rc7+ Kg6 47. Rc6+ Kg5 48. cxb6 $15) 46. Kh2 d3 $19) 43... Qxg3 {[%emt 0:00:55]} 44. Rxf5+ {[%emt 0:00:12]} Ke6 {[%emt 0:00:13]} 45. Rd5 {[%emt 0:00:54]} Qxd3+ {[%emt 0:00:32]} (45... Ke7 $142 {...Qh3+ is the strong threat.} 46. Rh8 Qxd3+ 47. Kf2 Qh3 (47... Qxb3 $2 48. Rh7+ Ke8 49. Re5+ Kd8 50. Ree7 $19)) 46. Kg2 {[%emt 0:00:09]} Qc2+ $1 {[%emt 0:01:00]} (46... Qxb3 47. Rc6+ Ke7 48. Rc7+ Kf6 49. Rc6+ Kf7 50. Rc7+ Kf6 51. Rc6+ Kf7 52. Rc7+ Ke6 53. Rc6+ Kf7 $11 (53... Ke7 54. Rc7+ Ke6 55. Rc6+ $11)) 47. Kf1 {[%emt 0:00:36]} (47. Kg1 $142) 47... Qc1+ {[%emt 0:00:52]} (47... Qxb3 48. Rc6+ Kf7 (48... Ke7 49. Rc7+ Kf6 50. Rc6+ Kf7 51. Rc7+ Ke6 52. Rc6+ Ke7 53. Rc7+ Ke6 54. Rc6+ $11) 49. Rc7+ Kf6 50. Rc6+ Kf7 51. Rc7+ Ke8 52. Rc8+ Kf7 53. Rc7+ $11) 48. Kg2 {[%emt 0:00:14] [#]} Qf4 $1 {[%emt 0:01:13][%cal Oh6h5]} ({Weaker is} 48... Qxa3 49. Rc6+ Kf7 (49... Ke7 50. Rc7+ Ke6 51. Rc6+ Kf7 52. Rc7+ Kf6 53. Rc6+ Ke7 54. Rc7+ Kf6 55. Rc6+ Ke7 $11) 50. Rc7+ Ke8 51. Rc8+ Kf7 52. Rc7+ Kg6 53. Rc6+ Kf7 54. Rc7+ $11) 49. Re8+ {[%emt 0:00:31]} Kf7 {[%emt 0:00:05]} 50. Rdd8 {[%emt 0:00:19]} (50. Ra8 $17) 50... Kg6 $2 {[%emt 0:01:55]} (50... Qg5+ $19 51. Kf3 Qh5+ 52. Kg3 d3) 51. Re6+ $11 {[%emt 0:00:24]} Kh5 {[%emt 0:00:29] ( -> ...Qg4+)} 52. Rde8 $1 {[%emt 0:00:33]} Qg4+ {[%emt 0:00:52]} 53. Kf2 {[%emt 0:00:27] Hoping for Re5+.} Qh4+ {[%emt 0:00:21]} 54. Kg2 $1 {[%emt 0:00:15]} d3 {[%emt 0:00:25]} 55. Rxh6+ {[%emt 0:00:43]} Kxh6 {[%emt 0:00:17] KQ-KR} 56. Rh8+ {[%emt 0:00:06]} Kg5 {[%emt 0:00:08]} 57. Rxh4 {[%emt 0:00:06]} Kxh4 {[%emt 0:00:03] KP-KP} 58. Kf3 {[%emt 0:00:08]} Kg5 {[%emt 0:00:51]} 59. Ke3 {[%emt 0:00:07]} Kg4 {[%emt 0:00:39]} 60. Kxd3 {[%emt 0:00:45] Strongly threatening Ke4. K3P-K3P} Kf3 {[%emt 0:00:30]} 61. b4 $2 {[%emt 0:00:35][%mdl 8192] [#]} (61. Kc3 $11) 61... Kf4 $2 {[%emt 0:00:41]} (61... a5 $1 {mates} 62. Kc2 a4 63. Kd3 Kf4 64. bxc5 bxc5 65. Kd2 Ke4 66. Kc3 Ke3 67. Kc2 Kd4 68. Kd2 Kxc4 69. Kc2 Kd4 70. Kd2 c4 71. Kc2 c3 72. Kc1 Kc5 (72... Kd3 {leads to mate.} 73. Kd1 Kd4 74. Kc1 Kc5 75. Kd1 Kd5 76. Kc1 Kd4 77. Kc2 Kc4 78. Kc1 Kb3 79. Kd1 Kxa3 80. Kc2 Kb4 81. Kc1 Kb3 82. Kd1 a3 83. Ke2 c2 84. Kf3 c1=Q 85. Kg3 a2 86. Kg4 a1=Q 87. Kg3 Qe3+ 88. Kg4 Qg7+ 89. Kh5 Qeh6#) 73. Kd1 Kd5 74. Kc1 Kd4 75. Kc2 Kc4 76. Kc1 Kb3 77. Kb1 Kxa3 78. Kc2 Kb4 79. Kc1 Kb3 80. Kd1 c2+ (80... a3 {gets mated.} 81. Ke2 c2 82. Kf3 c1=Q 83. Kg4 a2 84. Kf5 a1=Q 85. Kg4 Qf6 86. Kg3 Qcg5+ 87. Kh3 Qh8#) 81. Kd2 a3 82. Ke3 c1=Q+ (82... c1=R 83. Ke4 Rf1 84. Kd5 a2 85. Ke5 Kc4 86. Kd6 a1=Q 87. Ke6 Qg7 88. Kd6 Rf6+ 89. Ke5 Qe7#) 83. Ke4 a2 84. Ke5 a1=Q+ (84... a1=B+ 85. Ke4 Qc4+ 86. Kf3 Be5 87. Kf2 Qd3 88. Kg2 Qe2+ 89. Kg1 Bg3 90. Kh1 Qh2#) 85. Kf5 Qg7 86. Ke4 Qgg5 87. Kf3 Qce3#) 62. b5 {[%emt 0:00:39] The position is equal.} Kf3 {[%emt 0:00:09]} 63. Kc3 {[%emt 0:00:13]} Ke3 {[%emt 0:01:04]} 64. Kb3 {[%emt 0:00:23]} Kd3 {[%emt 0:00:07]} (64... Kd4 $5) 65. Ka4 $1 {[%emt 0:00:12]} Kxc4 {[%emt 0:01:04] Weighted Error Value: White=0.38/Black=0.32.  Loses game:     	White=2     	---        Missed win:     	---       	Black=3      Mistake:       	White=7     	Black=2      Inaccurate:     	White=1     	Black=2      OK:         	White=19    	Black=21     Best:        	White=9     	Black=4      Strong:       	White=3     	Black=5} 1/2-1/2

[Event "Djerba Festival Open-A 2024"]
[Site "Djerba"]
[Date "2024.02.20"]
[Round "4.1"]
[White "Rudzinska, Michalina"]
[Black "Travadon, Loic"]
[Result "1-0"]
[ECO "B22"]
[WhiteElo "2241"]
[BlackElo "2460"]
[Annotator "TA"]
[PlyCount "81"]
[EventDate "2024.02.18"]
[EventType "swiss"]
[EventCountry "TUN"]
[SourceTitle "playchess.com"]
[Source "ChessBase"]
[SourceQuality "1"]
[TimeControl "5400+30"]

{[%evp 9,81,16,19,10,50,48,56,58,60,54,62,50,94,86,124,112,145,150,144,124,147,152,233,229,234,218,223,237,297,282,287,282,394,258,296,296,300,320,336,324,441,440,527,498,546,521,560,570,575,545,666,543,528,528,478,383,363,368,673,541,1656,1671,1679,1561,29976,29977,29975,5306,3314,2841,2615,2327,29994,29995]} 1. e4 {[%emt 0:02:39]} c5 {[%emt 0:00:03]} 2. c3 {[%emt 0:00:13]} g6 {[%emt 0:00:10]} 3. d4 {[%emt 0:00:36]} cxd4 {[%emt 0:00:07]} 4. cxd4 {[%emt 0:00:06]} d5 {[%emt 0:00:04]} 5. e5 {[%emt 0:00:12]} Bg7 {[%emt 0:00:06]} 6. Nc3 {[%emt 0:00:18]} a6 {[%emt 0:00:12]} 7. g3 {[%emt 0:00:37]} Nc6 {[%emt 0:00:58]} 8. Bg2 {[%emt 0:01:12] White is slightly better.} e6 {[%emt 0:00:13]} 9. Nf3 {[%emt 0:01:29]} Nge7 {[%emt 0:00:19]} 10. h4 {[%emt 0:03:53]} h5 {[%emt 0:00:47]} 11. Bg5 {[%emt 0:01:02]} Bd7 {[%emt 0:00:37]} 12. O-O {[%emt 0:01:08]} b5 {[%emt 0:00:39]} 13. Qd2 {[%emt 0:02:50] White is more active.} Qa5 {[%emt 0:03:45]} 14. Rfc1 {[%emt 0:04:00]} Rc8 {[%emt 0:00:31]} 15. Bh3 {[%emt 0:01:58]} Nf5 {[%emt 0:07:29]} (15... b4 $16) 16. Bxf5 $18 {[%emt 0:03:44]} gxf5 {[%emt 0:00:07]} 17. Qe3 {[%emt 0:03:55]} Ne7 {[%emt 0:06:02]} 18. Ne2 {[%emt 0:03:31]} (18. Bxe7 Kxe7 19. Qg5+ Kf8 $14) 18... Rc4 {[%emt 0:06:08]} 19. b3 {[%emt 0:02:36]} Rxc1+ {[%emt 0:00:28]} 20. Rxc1 {[%emt 0:00:35][%cal Ba1c1,Bc1c2,Bc2c5][%mdl 32]} (20. Nxc1 f4 21. Bxf4 (21. Qxf4 Qc3 $16) 21... Nf5 $18) 20... Nc6 {[%emt 0:00:53][%cal Be7c6,Bc6b4,Bb4d3][%mdl 32]} 21. Rc2 {[%emt 0:04:21]} Bf8 {[%emt 0:01:01]} 22. Bf6 {[%emt 1:00:35]} Rh6 {[%emt 0:11:13]} 23. Qg5 {[%emt 0:00:00]} Nb4 {[%emt 0:04:37] [#]} 24. Rc5 {[%emt 0:00:00][%mdl 512]} Nd3 {[%emt 0:02:43][%cal Oa5a2] Dodges Nf4} (24... Rg6 25. Qxh5) 25. Rc3 {[%emt 0:00:00]} Qxa2 {[%emt 0:03:26]} 26. Qe3 {[%emt 0:00:00]} Qa1+ {[%emt 0:09:32]} 27. Kg2 {[%emt 0:00:00]} Nb4 {[%emt 0:00:45]} 28. Rc7 {[%emt 0:00:00]} Nc6 {[%emt 0:00:32] Prevents Ra7.} 29. Ng5 {[%emt 0:00:00]} Rg6 {[%emt 0:07:34]} 30. Qd2 {[%emt 0:00:00] [#] Hoping for Qc2.} Qa5 {[%emt 0:03:43]} 31. Qxa5 {[%emt 0:00:00]} Nxa5 {[%emt 0:00:02]} 32. Ra7 {[%emt 0:00:00] Ra8+ is the strong threat.} Bc8 {[%emt 0:00:12]} 33. Nf4 {[%emt 0:00:00]} (33. Nxf7 Nc6 $18) (33. Rxf7 Bd7 $14 (33... Nxb3 $2 34. Rc7 $18)) 33... Rg8 $2 {[%emt 0:01:14]} (33... Rxg5 34. hxg5 (34. Bxg5 Bb7 $18) 34... Nxb3) 34. Nxf7 {[%emt 0:00:00]} Nxb3 {[%emt 0:01:56]} 35. Nd6+ {[%emt 0:00:00]} Bxd6 {[%emt 0:00:03]} 36. exd6 {[%emt 0:00:00][%cal Of4d3] Threatening mate with Nd3!} Bd7 {[%emt 0:00:08]} 37. Nd3 {[%emt 0:00:00]} Kf7 {[%emt 0:03:27]} 38. Rxd7+ {[%emt 0:00:00]} (38. Ne5+ $142 Kxf6 39. Rxd7 (39. Nxd7+ Kg6 $18) 39... Rf8 40. Re7 f4 41. Nd7+ (41. gxf4 Rg8+ 42. Kh3 Kf5 $18) 41... Kf5 42. Nxf8 f3+ 43. Kxf3 Nxd4+ 44. Ke3) 38... Kxf6 {[%emt 0:00:07]} 39. Ne5 {[%emt 0:00:00]} Rf8 {[%emt 0:00:10] Repels Rf7+} 40. Rh7 {[%emt 0:00:00] Nd7+ would kill now.} Nc5 {[%emt 0:00:26]} 41. f4 {[%emt 0:00:00] Black got outplayed after the opening.   Weighted Error Value: White=0.21 (precise) /Black=0.79.  Mistake:       	---       	Black=2      Inaccurate:     	White=1     	Black=6      OK:         	White=15    	Black=6      Best:        	White=2     	Black=1} 1-0